[Event "*** Titled Tuesday Blitz"]
[Site "Chess.com"]
[Date "2019.10.01"]
[Round "5"]
[White "JSPrepz"]
[Black "Darhild"]
[Result "0-1"]
[WhiteElo "2812"]
[BlackElo "2643"]
[TimeControl "180+2"]
[EndTime "14:14:18 PDT"]
[Termination "Darhild won by checkmate"]

1. e4 {[%clk 0:03:01.9]} 1... c5 {[%clk 0:03:00.7]} 2. Nf3 {[%clk 0:03:02.6]}
2... d6 {[%clk 0:03:01.8]} 3. Nc3 {[%clk 0:03:02.2]} 3... Nf6 {[%clk 0:03:02.6]}
4. e5 {[%clk 0:03:02.2]} 4... dxe5 {[%clk 0:03:01.7]} 5. Nxe5 {[%clk 0:02:54.8]}
5... a6 {[%clk 0:02:58.4]} 6. g3 {[%clk 0:02:55.4]} 6... Nbd7 {[%clk 0:02:59.5]}
7. d4 {[%clk 0:02:52.5]} 7... cxd4 {[%clk 0:02:49.3]} 8. Qxd4 {[%clk 0:02:54.4]}
8... Nxe5 {[%clk 0:02:50.7]} 9. Qxe5 {[%clk 0:02:54.3]} 9... Qb6 {[%clk
0:02:38.2]} 10. Qe2 {[%clk 0:02:32.5]} 10... Bg4 {[%clk 0:02:25]} 11. f3 {[%clk
0:02:33.3]} 11... Bd7 {[%clk 0:02:23.5]} 12. Bg2 {[%clk 0:02:34.1]} 12... e6
{[%clk 0:02:22.3]} 13. a3 {[%clk 0:02:23.7]} 13... Rc8 {[%clk 0:02:10.5]} 14. f4
{[%clk 0:01:38.3]} 14... Bc5 {[%clk 0:01:42.2]} 15. Bf3 {[%clk 0:01:39.3]} 15...
O-O {[%clk 0:01:26.2]} 16. Kf1 {[%clk 0:01:38.8]} 16... Bd4 {[%clk 0:01:27.4]}
17. Kg2 {[%clk 0:01:35.7]} 17... Bxc3 {[%clk 0:01:05]} 18. bxc3 {[%clk
0:01:37.6]} 18... Rxc3 {[%clk 0:01:06.4]} 19. Re1 {[%clk 0:01:28.4]} 19... Rfc8
{[%clk 0:01:05.3]} 20. Be3 {[%clk 0:01:24.3]} 20... Qc7 {[%clk 0:00:51]} 21. Kg1
{[%clk 0:01:19.4]} 21... Bc6 {[%clk 0:00:45.5]} 22. Rac1 {[%clk 0:01:03.8]}
22... Bxf3 {[%clk 0:00:42.3]} 23. Qxf3 {[%clk 0:01:05.7]} 23... Nd5 {[%clk
0:00:43.9]} 24. Kg2 {[%clk 0:01:01.3]} 24... Qc6 {[%clk 0:00:40.3]} 25. Kf2
{[%clk 0:01:00.9]} 25... Nxe3 {[%clk 0:00:32.9]} 26. Rxe3 {[%clk 0:01:02.8]}
26... Rxc2+ {[%clk 0:00:20.5]} 27. Rxc2 {[%clk 0:01:00.5]} 27... Qxf3+ {[%clk
0:00:21.5]} 28. Kxf3 {[%clk 0:01:01.3]} 28... Rxc2 {[%clk 0:00:23.1]} 29. Rd3
{[%clk 0:01:03.2]} 29... g6 {[%clk 0:00:23.8]} 30. g4 {[%clk 0:01:02.1]} 30...
h6 {[%clk 0:00:24.1]} 31. h4 {[%clk 0:01:02.8]} 31... Kf8 {[%clk 0:00:22.9]} 32.
Rd8+ {[%clk 0:00:58.3]} 32... Kg7 {[%clk 0:00:19.7]} 33. Rd3 {[%clk 0:00:59.4]}
33... Rc4 {[%clk 0:00:17]} 34. Kg3 {[%clk 0:00:55.6]} 34... b5 {[%clk
0:00:15.6]} 35. Rb3 {[%clk 0:00:55.4]} 35... Kf6 {[%clk 0:00:13.5]} 36. Re3
{[%clk 0:00:52.7]} 36... a5 {[%clk 0:00:12.6]} 37. Re5 {[%clk 0:00:50.6]} 37...
Rc3+ {[%clk 0:00:11.8]} 38. Kg2 {[%clk 0:00:51.6]} 38... Rb3 {[%clk 0:00:06]}
39. Rc5 {[%clk 0:00:52.6]} 39... a4 {[%clk 0:00:04.6]} 40. Kf2 {[%clk
0:00:51.6]} 40... Ke7 {[%clk 0:00:05.7]} 41. Rc7+ {[%clk 0:00:51.8]} 41... Kd6
{[%clk 0:00:05.6]} 42. Rxf7 {[%clk 0:00:52.5]} 42... Rxa3 {[%clk 0:00:07.1]} 43.
h5 {[%clk 0:00:46.1]} 43... gxh5 {[%clk 0:00:05.5]} 44. g5 {[%clk 0:00:47.7]}
44... hxg5 {[%clk 0:00:06.1]} 45. fxg5 {[%clk 0:00:49.6]} 45... Ra2+ {[%clk
0:00:06.7]} 46. Kf3 {[%clk 0:00:50.3]} 46... Ra1 {[%clk 0:00:07.3]} 47. Kf2
{[%clk 0:00:48.3]} 47... Ra2+ {[%clk 0:00:05.6]} 48. Kf3 {[%clk 0:00:44.9]}
48... h4 {[%clk 0:00:06.7]} 49. g6 {[%clk 0:00:33.7]} 49... Ra3+ {[%clk
0:00:07.9]} 50. Kf2 {[%clk 0:00:20.9]} 50... Rg3 {[%clk 0:00:09.3]} 51. g7
{[%clk 0:00:22.8]} 51... a3 {[%clk 0:00:10.1]} 52. Ra7 {[%clk 0:00:21.3]} 52...
b4 {[%clk 0:00:11.1]} 53. Ra4 {[%clk 0:00:18.8]} 53... Kc5 {[%clk 0:00:11.1]}
54. Ra7 {[%clk 0:00:18.6]} 54... Kc4 {[%clk 0:00:11.3]} 55. Ra8 {[%clk
0:00:19.9]} 55... Kb3 {[%clk 0:00:12.1]} 56. g8=Q {[%clk 0:00:20.4]} 56... Rxg8
{[%clk 0:00:12.3]} 57. Rxg8 {[%clk 0:00:22.3]} 57... a2 {[%clk 0:00:13.9]} 58.
Rg1 {[%clk 0:00:16.8]} 58... Kb2 {[%clk 0:00:14.8]} 59. Kf3 {[%clk 0:00:17]}
59... a1=Q {[%clk 0:00:15.9]} 60. Rg2+ {[%clk 0:00:12.8]} 60... Kb3 {[%clk
0:00:16.4]} 61. Kg4 {[%clk 0:00:12.8]} 61... Qd4+ {[%clk 0:00:17]} 62. Kh3
{[%clk 0:00:13.9]} 62... e5 {[%clk 0:00:12.5]} 63. Kh2 {[%clk 0:00:13.8]} 63...
Qf4+ {[%clk 0:00:12.8]} 64. Kh1 {[%clk 0:00:11.8]} 64... Qf3 {[%clk 0:00:13.6]}
65. Kg1 {[%clk 0:00:13.1]} 65... Qxg2+ {[%clk 0:00:14.7]} 66. Kxg2 {[%clk
0:00:14.6]} 66... Kc2 {[%clk 0:00:16.2]} 67. Kf2 {[%clk 0:00:16]} 67... b3
{[%clk 0:00:18.1]} 68. Kg2 {[%clk 0:00:17.5]} 68... b2 {[%clk 0:00:19.6]} 69.
Kh2 {[%clk 0:00:19.4]} 69... b1=Q {[%clk 0:00:21.4]} 70. Kh3 {[%clk 0:00:20.6]}
70... Qf1+ {[%clk 0:00:21.6]} 71. Kh2 {[%clk 0:00:22.2]} 71... Qf4+ {[%clk
0:00:21.8]} 72. Kg1 {[%clk 0:00:23]} 72... Kd2 {[%clk 0:00:20.9]} 73. Kh1 {[%clk
0:00:24.3]} 73... Ke2 {[%clk 0:00:22]} 74. Kg2 {[%clk 0:00:26.2]} 74... Qg3+
{[%clk 0:00:21.8]} 75. Kh1 {[%clk 0:00:27.8]} 75... Qg4 {[%clk 0:00:23.1]} 76.
Kh2 {[%clk 0:00:29.1]} 76... Kf2 {[%clk 0:00:24.5]} 77. Kh1 {[%clk 0:00:30.9]}
77... Qg2# {[%clk 0:00:25.9]} 0-1

[Event "*** Titled Tuesday Blitz"]
[Site "Chess.com"]
[Date "2019.10.01"]
[Round "5"]
[White "MarcoRiehle"]
[Black "VerdeNotte"]
[Result "0-1"]
[WhiteElo "2587"]
[BlackElo "2771"]
[TimeControl "180+2"]
[EndTime "14:14:25 PDT"]
[Termination "VerdeNotte won on time"]

1. e4 {[%clk 0:03:01.9]} 1... d6 {[%clk 0:02:58.6]} 2. d4 {[%clk 0:02:59.5]}
2... Nf6 {[%clk 0:02:58.9]} 3. f3 {[%clk 0:03:00.4]} 3... c5 {[%clk 0:02:58.4]}
4. Ne2 {[%clk 0:03:00.6]} 4... cxd4 {[%clk 0:02:59.1]} 5. Nxd4 {[%clk
0:03:02.5]} 5... g6 {[%clk 0:03:00.1]} 6. c4 {[%clk 0:03:02.5]} 6... Nc6 {[%clk
0:03:00.8]} 7. Be3 {[%clk 0:03:02.2]} 7... Bg7 {[%clk 0:02:56.8]} 8. Qd2 {[%clk
0:03:02.6]} 8... O-O {[%clk 0:02:55]} 9. Nc3 {[%clk 0:03:02.4]} 9... a5 {[%clk
0:02:52.6]} 10. b3 {[%clk 0:03:00.2]} 10... a4 {[%clk 0:02:52.9]} 11. Nxa4
{[%clk 0:02:51.3]} 11... Bd7 {[%clk 0:02:39.9]} 12. Nc3 {[%clk 0:02:48.1]} 12...
Na5 {[%clk 0:02:39]} 13. Rc1 {[%clk 0:02:36.5]} 13... Re8 {[%clk 0:02:37.8]} 14.
Be2 {[%clk 0:02:24.1]} 14... Nc6 {[%clk 0:02:38]} 15. O-O {[%clk 0:02:24.5]}
15... Qa5 {[%clk 0:02:38]} 16. Rfd1 {[%clk 0:02:20.5]} 16... Nb4 {[%clk
0:02:34.7]} 17. a4 {[%clk 0:02:14.8]} 17... Na6 {[%clk 0:02:35.2]} 18. Ncb5
{[%clk 0:02:01.6]} 18... Qxd2 {[%clk 0:02:33.9]} 19. Rxd2 {[%clk 0:01:46.1]}
19... Nc5 {[%clk 0:02:34.8]} 20. Nc7 {[%clk 0:01:39.3]} 20... e5 {[%clk
0:02:34.9]} 21. Nxe8 {[%clk 0:01:36.7]} 21... Nxe8 {[%clk 0:02:26.3]} 22. Bd1
{[%clk 0:01:20.5]} 22... exd4 {[%clk 0:02:26.3]} 23. Bxd4 {[%clk 0:01:10.6]}
23... Bh6 {[%clk 0:02:27.2]} 24. Bc3 {[%clk 0:01:05.1]} 24... f5 {[%clk
0:02:16.3]} 25. exf5 {[%clk 0:00:41.2]} 25... Bxf5 {[%clk 0:02:17]} 26. b4
{[%clk 0:00:36.7]} 26... Bxd2 {[%clk 0:02:06.7]} 27. Bxd2 {[%clk 0:00:35.9]}
27... Nxa4 {[%clk 0:02:07.5]} 28. c5 {[%clk 0:00:24]} 28... dxc5 {[%clk
0:02:02.9]} 29. bxc5 {[%clk 0:00:25.9]} 29... Be6 {[%clk 0:01:53.4]} 30. Kf2
{[%clk 0:00:12.2]} 30... Nb2 {[%clk 0:01:49.8]} 31. Be2 {[%clk 0:00:12.9]} 31...
Ra2 {[%clk 0:01:48]} 32. Rc2 {[%clk 0:00:12.2]} 32... Na4 {[%clk 0:01:43.1]} 33.
Rxa2 {[%clk 0:00:13.1]} 33... Bxa2 {[%clk 0:01:45]} 34. Bb5 {[%clk 0:00:14.5]}
34... Nxc5 {[%clk 0:01:36.7]} 35. Bxe8 {[%clk 0:00:15.8]} 35... Bc4 {[%clk
0:01:37.2]} 36. Be3 {[%clk 0:00:15.1]} 36... Nd3+ {[%clk 0:01:38.4]} 37. Kg3
{[%clk 0:00:15.4]} 37... b5 {[%clk 0:01:37.7]} 38. Bd4 {[%clk 0:00:12.9]} 38...
b4 {[%clk 0:01:37.8]} 39. h4 {[%clk 0:00:11.4]} 39... b3 {[%clk 0:01:38.3]} 40.
h5 {[%clk 0:00:12.1]} 40... gxh5 {[%clk 0:01:29.4]} 41. Bxh5 {[%clk 0:00:12.5]}
41... b2 {[%clk 0:01:30.8]} 42. Bxb2 {[%clk 0:00:13.8]} 42... Nxb2 {[%clk
0:01:32.7]} 43. Bg4 {[%clk 0:00:14.8]} 43... Nd3 {[%clk 0:01:30.5]} 44. Bf5
{[%clk 0:00:15.5]} 44... Kg7 {[%clk 0:01:29.9]} 45. Kh4 {[%clk 0:00:15.7]} 45...
Ne1 {[%clk 0:01:29.4]} 46. Kg3 {[%clk 0:00:15.7]} 46... h6 {[%clk 0:01:29.2]}
47. Kf2 {[%clk 0:00:15.5]} 47... Nd3+ {[%clk 0:01:30.3]} 48. Ke3 {[%clk
0:00:16.6]} 48... Nb4 {[%clk 0:01:30.9]} 49. g4 {[%clk 0:00:15.7]} 49... Nc6
{[%clk 0:01:16.5]} 50. f4 {[%clk 0:00:15.7]} 50... Ne7 {[%clk 0:01:17.7]} 51.
Bd7 {[%clk 0:00:14.2]} 51... Nd5+ {[%clk 0:00:49.5]} 52. Kf3 {[%clk 0:00:14.5]}
52... Nf6 {[%clk 0:00:43.1]} 53. Bf5 {[%clk 0:00:14.4]} 53... Bd5+ {[%clk
0:00:44]} 54. Kg3 {[%clk 0:00:15.1]} 54... Be4 {[%clk 0:00:26]} 55. Be6 {[%clk
0:00:13.5]} 55... Bd5 {[%clk 0:00:22.3]} 56. Bf5 {[%clk 0:00:13.6]} 56... Ne4+
{[%clk 0:00:20.6]} 57. Kh4 {[%clk 0:00:12.4]} 57... Nd6 {[%clk 0:00:18.5]} 58.
Bd7 {[%clk 0:00:11.5]} 58... Bf3 {[%clk 0:00:14.4]} 59. g5 {[%clk 0:00:10.9]}
59... h5 {[%clk 0:00:11.1]} 60. f5 {[%clk 0:00:11.4]} 60... Kf7 {[%clk
0:00:06.3]} 61. Be6+ {[%clk 0:00:11.1]} 61... Ke7 {[%clk 0:00:07.7]} 62. Kg3
{[%clk 0:00:08.1]} 62... Bd1 {[%clk 0:00:05.6]} 63. Kh4 {[%clk 0:00:08.2]} 63...
Bg4 {[%clk 0:00:05.4]} 64. Kg3 {[%clk 0:00:03.6]} 64... Nxf5+ {[%clk 0:00:05.6]}
0-1

[Event "*** Titled Tuesday Blitz"]
[Site "Chess.com"]
[Date "2019.10.01"]
[Round "5"]
[White "Alexander_Moskalenko"]
[Black "Blackmind96"]
[Result "1/2-1/2"]
[WhiteElo "2889"]
[BlackElo "2697"]
[TimeControl "180+2"]
[EndTime "14:15:13 PDT"]
[Termination "Game drawn by agreement"]

1. c4 {[%clk 0:03:01.9]} 1... Nf6 {[%clk 0:02:58.4]} 2. Nc3 {[%clk 0:03:02.9]}
2... e6 {[%clk 0:02:59.5]} 3. Nf3 {[%clk 0:03:02.5]} 3... d5 {[%clk 0:02:59.8]}
4. e3 {[%clk 0:03:03.5]} 4... Be7 {[%clk 0:02:58.6]} 5. b3 {[%clk 0:03:02.8]}
5... O-O {[%clk 0:03:00]} 6. Bb2 {[%clk 0:03:03.9]} 6... b6 {[%clk 0:03:00.7]}
7. Qc2 {[%clk 0:03:03]} 7... Bb7 {[%clk 0:03:01.6]} 8. Be2 {[%clk 0:03:01.5]}
8... c5 {[%clk 0:03:03]} 9. cxd5 {[%clk 0:03:00.9]} 9... Nxd5 {[%clk 0:03:03.6]}
10. Nxd5 {[%clk 0:03:01.7]} 10... Qxd5 {[%clk 0:03:02.5]} 11. a3 {[%clk
0:02:31.4]} 11... Nd7 {[%clk 0:03:00.5]} 12. O-O {[%clk 0:02:29.2]} 12... Nf6
{[%clk 0:02:59.2]} 13. d3 {[%clk 0:02:29.8]} 13... Rac8 {[%clk 0:02:56.7]} 14.
Rfd1 {[%clk 0:02:30.1]} 14... Rfd8 {[%clk 0:02:58.1]} 15. Rab1 {[%clk
0:02:30.1]} 15... Nd7 {[%clk 0:02:36.1]} 16. Ne1 {[%clk 0:02:26.6]} 16... Nf6
{[%clk 0:02:33.3]} 17. Bf3 {[%clk 0:02:27]} 17... Qd7 {[%clk 0:02:32.3]} 18.
Bxb7 {[%clk 0:02:27.6]} 18... Qxb7 {[%clk 0:02:34.2]} 19. Qc4 {[%clk 0:02:15.7]}
19... b5 {[%clk 0:02:34.6]} 20. Qf4 {[%clk 0:02:15.3]} 20... Qd5 {[%clk
0:02:33]} 21. Ba1 {[%clk 0:02:14.1]} 21... Bd6 {[%clk 0:02:26.1]} 22. Qf3 {[%clk
0:02:14.6]} 22... Qxf3 {[%clk 0:02:25.9]} 23. Nxf3 {[%clk 0:02:15.7]} 23... Be7
{[%clk 0:02:27.2]} 24. Kf1 {[%clk 0:02:16.8]} 24... Kf8 {[%clk 0:02:26.9]} 25.
Ke2 {[%clk 0:02:15.4]} 25... Ke8 {[%clk 0:02:26.9]} 26. a4 {[%clk 0:02:15.8]}
26... a6 {[%clk 0:02:25.6]} 27. axb5 {[%clk 0:02:16.8]} 27... axb5 {[%clk
0:02:27.5]} 28. Bb2 {[%clk 0:02:15.7]} 28... Ra8 {[%clk 0:02:28.7]} 29. Ra1
{[%clk 0:02:17]} 29... g6 {[%clk 0:02:28.9]} 30. Rdc1 {[%clk 0:02:18.3]} 30...
Nd5 {[%clk 0:02:29.4]} 31. Ne1 {[%clk 0:02:10.6]} 31... Nb4 {[%clk 0:02:28]} 32.
g4 {[%clk 0:01:52.8]} 32... f5 {[%clk 0:02:22.3]} 33. h3 {[%clk 0:01:53.4]}
33... Na2 {[%clk 0:02:16]} 34. Rd1 {[%clk 0:01:49.8]} 34... Nb4 {[%clk
0:02:13.6]} 35. Bc3 {[%clk 0:01:48.9]} 35... Nd5 {[%clk 0:02:13.3]} 36. Be5
{[%clk 0:01:47.6]} 36... Kd7 {[%clk 0:02:02.1]} 37. e4 {[%clk 0:01:40.3]} 37...
Nb4 {[%clk 0:01:56.3]} 38. Bc3 {[%clk 0:01:17.1]} 38... Nc6 {[%clk 0:01:55.4]}
39. Nc2 {[%clk 0:00:58.5]} 39... Ke8 {[%clk 0:01:55.7]} 40. f4 {[%clk 0:00:51]}
40... fxe4 {[%clk 0:01:38.8]} 41. dxe4 {[%clk 0:00:48.6]} 41... b4 {[%clk
0:01:32]} 42. Rxd8+ {[%clk 0:00:44.8]} 42... Rxd8 {[%clk 0:01:33.9]} 43. Bb2
{[%clk 0:00:45.5]} 43... e5 {[%clk 0:01:29.5]} 44. fxe5 {[%clk 0:00:10.3]} 44...
Bg5 {[%clk 0:01:29.6]} 45. Ne3 {[%clk 0:00:08]} 45... Nd4+ {[%clk 0:01:25.7]}
46. Bxd4 {[%clk 0:00:08.7]} 46... Rxd4 {[%clk 0:01:26.9]} 47. Ra8+ {[%clk
0:00:09.6]} 47... Kf7 {[%clk 0:01:28.2]} 48. Ra7+ {[%clk 0:00:10]} 48... Ke6
{[%clk 0:01:28.7]} 49. Nc4 {[%clk 0:00:11.2]} 49... Rxe4+ {[%clk 0:01:29.2]} 50.
Kf3 {[%clk 0:00:12.5]} 50... Rf4+ {[%clk 0:01:30.1]} 51. Ke2 {[%clk 0:00:11]}
51... Rf7 {[%clk 0:01:27.3]} 52. Ra6+ {[%clk 0:00:11.3]} 52... Kd5 {[%clk
0:01:25.9]} 53. e6 {[%clk 0:00:08.4]} 53... Re7 {[%clk 0:01:18.3]} 54. Rd6+
{[%clk 0:00:09.7]} 54... Ke4 {[%clk 0:01:19.7]} 55. Nd2+ {[%clk 0:00:02.7]}
55... Bxd2 {[%clk 0:01:16.8]} 56. Kxd2 {[%clk 0:00:04.6]} 56... Ke5 {[%clk
0:01:18]} 57. Rc6 {[%clk 0:00:05.9]} 57... Kd5 {[%clk 0:01:18.7]} 58. Ra6 {[%clk
0:00:07]} 58... Rxe6 {[%clk 0:01:19.9]} 59. Ra7 {[%clk 0:00:08.4]} 59... h5
{[%clk 0:01:20.8]} 60. gxh5 {[%clk 0:00:09.3]} 60... gxh5 {[%clk 0:01:22.7]} 61.
Rh7 {[%clk 0:00:09.4]} 61... Re5 {[%clk 0:01:23.9]} 62. h4 {[%clk 0:00:10.4]}
62... Rf5 {[%clk 0:01:24.9]} 63. Rd7+ {[%clk 0:00:10.5]} 63... Ke4 {[%clk
0:01:23.1]} 64. Rh7 {[%clk 0:00:10.1]} 64... Rf2+ {[%clk 0:01:20]} 65. Kc1
{[%clk 0:00:10.5]} 65... Rf5 {[%clk 0:01:20.6]} 66. Kd2 {[%clk 0:00:11.8]} 66...
Kf4 {[%clk 0:01:21.9]} 67. Rg7 {[%clk 0:00:13.3]} 67... Rd5+ {[%clk 0:01:20.3]}
68. Kc2 {[%clk 0:00:14.5]} 68... Re5 {[%clk 0:01:10.7]} 69. Kd2 {[%clk
0:00:09.2]} 69... Ke4 {[%clk 0:01:09.2]} 70. Ke2 {[%clk 0:00:06.4]} 70... Rf5
{[%clk 0:01:08.6]} 71. Kd2 {[%clk 0:00:05.3]} 71... Rf2+ {[%clk 0:01:07.2]} 72.
Kc1 {[%clk 0:00:05.6]} 72... Kd4 {[%clk 0:01:07.2]} 73. Rg5 {[%clk 0:00:06.5]}
73... Rf3 {[%clk 0:01:02.5]} 74. Kb2 {[%clk 0:00:06.6]} 74... Rf2+ {[%clk
0:01:01.4]} 75. Kc1 {[%clk 0:00:07.8]} 75... Rh2 {[%clk 0:01:02.8]} 76. Rxh5
{[%clk 0:00:08.6]} 76... Rh1+ {[%clk 0:00:57.8]} 77. Kc2 {[%clk 0:00:07.9]}
77... Rh3 {[%clk 0:00:59.1]} 78. Kb2 {[%clk 0:00:06.1]} 78... Rc3 {[%clk
0:00:56.3]} 79. Rg5 {[%clk 0:00:06.6]} 79... Rh3 {[%clk 0:00:57]} 80. Rg4+
{[%clk 0:00:08]} 80... Kd3 {[%clk 0:00:57.5]} 81. Rc4 {[%clk 0:00:09.4]} 81...
Rh2+ {[%clk 0:00:58.3]} 82. Kb1 {[%clk 0:00:10.6]} 82... Rh1+ {[%clk 0:00:53.1]}
83. Kb2 {[%clk 0:00:11.7]} 83... Rh2+ {[%clk 0:00:54]} 84. Kb1 {[%clk
0:00:13.2]} 84... Rh3 {[%clk 0:00:43.5]} 85. Rxc5 {[%clk 0:00:13.4]} 85... Rxh4
{[%clk 0:00:44.7]} 86. Kb2 {[%clk 0:00:14.8]} 86... Rh2+ {[%clk 0:00:44.3]} 87.
Kb1 {[%clk 0:00:15.9]} 87... Rh1+ {[%clk 0:00:45.7]} 88. Kb2 {[%clk 0:00:16.9]}
88... Rh2+ {[%clk 0:00:46.5]} 89. Kb1 {[%clk 0:00:18.1]} 1/2-1/2

[Event "*** Titled Tuesday Blitz"]
[Site "Chess.com"]
[Date "2019.10.01"]
[Round "6"]
[White "evgenyermolaev"]
[Black "JSPrepz"]
[Result "0-1"]
[WhiteElo "2492"]
[BlackElo "2814"]
[TimeControl "180+2"]
[EndTime "14:19:07 PDT"]
[Termination "JSPrepz won by resignation"]

1. e4 {[%clk 0:03:01.7]} 1... e5 {[%clk 0:03:01.9]} 2. Nf3 {[%clk 0:03:02.6]}
2... Nc6 {[%clk 0:03:01]} 3. Ba6 {[%clk 0:03:03.2]} 3... bxa6 {[%clk 0:03:00.9]}
4. d3 {[%clk 0:02:55.3]} 4... Nf6 {[%clk 0:02:58.6]} 5. Nc3 {[%clk 0:02:56]}
5... Bc5 {[%clk 0:02:59.5]} 6. Bg5 {[%clk 0:02:56.1]} 6... h6 {[%clk 0:02:59.7]}
7. Bh4 {[%clk 0:02:56.8]} 7... g5 {[%clk 0:03:00.6]} 8. Bg3 {[%clk 0:02:57.9]}
8... d6 {[%clk 0:03:01.3]} 9. Qd2 {[%clk 0:02:57.9]} 9... Rb8 {[%clk 0:03:02.6]}
10. O-O-O {[%clk 0:02:58.3]} 10... Be6 {[%clk 0:03:03.4]} 11. h4 {[%clk
0:02:56.9]} 11... g4 {[%clk 0:03:04.3]} 12. Ng1 {[%clk 0:02:57.7]} 12... Nd4
{[%clk 0:03:05.1]} 13. Nge2 {[%clk 0:02:56.9]} 13... Bb4 {[%clk 0:03:06.2]} 14.
Qe3 {[%clk 0:02:49.5]} 14... Bxc3 {[%clk 0:03:03.1]} 15. Nxc3 {[%clk 0:02:50.2]}
15... Qd7 {[%clk 0:03:00.6]} 16. f4 {[%clk 0:02:48.8]} 16... gxf3 {[%clk
0:03:01.4]} 17. gxf3 {[%clk 0:02:50.7]} 17... Qc6 {[%clk 0:03:00.7]} 18. f4
{[%clk 0:02:49.3]} 18... Qb6 {[%clk 0:03:01.1]} 19. b3 {[%clk 0:02:45.4]} 19...
Nxb3+ {[%clk 0:03:02]} 0-1

[Event "*** Titled Tuesday Blitz"]
[Site "Chess.com"]
[Date "2019.10.01"]
[Round "6"]
[White "RitvarsReimanis"]
[Black "mortngabriel"]
[Result "1-0"]
[WhiteElo "2588"]
[BlackElo "2347"]
[TimeControl "180+2"]
[EndTime "14:19:58 PDT"]
[Termination "RitvarsReimanis won by resignation"]

1. d4 {[%clk 0:03:01.9]} 1... Nf6 {[%clk 0:03:00.6]} 2. c4 {[%clk 0:02:59.6]}
2... c5 {[%clk 0:02:58.9]} 3. d5 {[%clk 0:03:00.4]} 3... b5 {[%clk 0:03:00.3]}
4. cxb5 {[%clk 0:03:02.3]} 4... a6 {[%clk 0:03:01.5]} 5. bxa6 {[%clk 0:03:04.2]}
5... g6 {[%clk 0:03:02.9]} 6. Nc3 {[%clk 0:03:06.1]} 6... Bxa6 {[%clk
0:03:04.4]} 7. Nf3 {[%clk 0:03:08]} 7... Bg7 {[%clk 0:03:02.6]} 8. Rb1 {[%clk
0:03:09.5]} 8... d6 {[%clk 0:02:59.9]} 9. b3 {[%clk 0:03:09.3]} 9... Nbd7 {[%clk
0:02:52.1]} 10. Bb2 {[%clk 0:03:08.3]} 10... Qa5 {[%clk 0:02:39]} 11. Qd2 {[%clk
0:03:08.8]} 11... O-O {[%clk 0:02:37.7]} 12. g3 {[%clk 0:03:07.9]} 12... Nb6
{[%clk 0:02:34.2]} 13. Bg2 {[%clk 0:02:58.1]} 13... Nbxd5 {[%clk 0:01:55.1]} 14.
Nxd5 {[%clk 0:02:56.4]} 14... Qxd2+ {[%clk 0:01:43.1]} 15. Nxd2 {[%clk
0:02:56.9]} 1-0

[Event "*** Titled Tuesday Blitz"]
[Site "Chess.com"]
[Date "2019.10.01"]
[Round "6"]
[White "KhalilMousavi77"]
[Black "harvsp123"]
[Result "1-0"]
[WhiteElo "2791"]
[BlackElo "2488"]
[TimeControl "180+2"]
[EndTime "14:19:58 PDT"]
[Termination "KhalilMousavi77 won by checkmate"]

1. e4 {[%clk 0:03:01.5]} 1... c5 {[%clk 0:02:59.5]} 2. Nf3 {[%clk 0:03:00.5]}
2... d6 {[%clk 0:03:00.3]} 3. d4 {[%clk 0:03:02.3]} 3... cxd4 {[%clk 0:03:01.3]}
4. Nxd4 {[%clk 0:03:04.2]} 4... Nf6 {[%clk 0:03:02.8]} 5. Nc3 {[%clk 0:03:06]}
5... a6 {[%clk 0:03:04.3]} 6. Bc4 {[%clk 0:03:07.8]} 6... e6 {[%clk 0:03:04.2]}
7. Be3 {[%clk 0:03:08.8]} 7... b5 {[%clk 0:02:56.4]} 8. Bb3 {[%clk 0:03:09.3]}
8... Be7 {[%clk 0:02:57.5]} 9. f4 {[%clk 0:03:10.4]} 9... Bb7 {[%clk 0:02:40]}
10. Bxe6 {[%clk 0:02:57.3]} 10... fxe6 {[%clk 0:02:23]} 11. Nxe6 {[%clk
0:02:59.2]} 11... Qa5 {[%clk 0:02:23.2]} 12. O-O {[%clk 0:02:45.5]} 12... Kf7
{[%clk 0:02:14.1]} 13. Ng5+ {[%clk 0:02:45.6]} 13... Kg8 {[%clk 0:02:14.8]} 14.
e5 {[%clk 0:02:47]} 14... Ne8 {[%clk 0:01:58.6]} 15. Nd5 {[%clk 0:02:45.5]}
15... Bxg5 {[%clk 0:01:53.7]} 16. fxg5 {[%clk 0:02:47.4]} 16... b4 {[%clk
0:01:53.5]} 17. Ne7# {[%clk 0:02:47.9]} 1-0

[Event "*** Titled Tuesday Blitz"]
[Site "Chess.com"]
[Date "2019.10.01"]
[Round "6"]
[White "Kostya_Nikologorskiy"]
[Black "Alex_32167"]
[Result "1-0"]
[WhiteElo "2520"]
[BlackElo "2646"]
[TimeControl "180+2"]
[EndTime "14:22:17 PDT"]
[Termination "Kostya_Nikologorskiy won by resignation"]

1. d4 {[%clk 0:03:01.9]} 1... d5 {[%clk 0:02:03.6]} 2. c4 {[%clk 0:03:02.1]}
2... Bf5 {[%clk 0:02:04.5]} 3. cxd5 {[%clk 0:02:57.7]} 3... Bxb1 {[%clk
0:02:04.3]} 4. Qa4+ {[%clk 0:02:53.3]} 4... Qd7 {[%clk 0:02:05.2]} 5. Qxd7+
{[%clk 0:02:53.1]} 5... Nxd7 {[%clk 0:02:06.3]} 6. Rxb1 {[%clk 0:02:54]} 6...
Ngf6 {[%clk 0:02:07]} 7. g3 {[%clk 0:02:53.3]} 7... Nxd5 {[%clk 0:02:07.1]} 8.
Bg2 {[%clk 0:02:54.8]} 8... Nb4 {[%clk 0:02:05.2]} 9. e3 {[%clk 0:02:51.7]} 9...
c6 {[%clk 0:01:54.3]} 10. Bd2 {[%clk 0:02:50.6]} 10... e5 {[%clk 0:01:51.1]} 11.
a3 {[%clk 0:02:49]} 11... Nd5 {[%clk 0:01:50]} 12. e4 {[%clk 0:02:45.5]} 12...
N5b6 {[%clk 0:01:49.3]} 13. Ne2 {[%clk 0:02:42.9]} 13... exd4 {[%clk 0:01:45]}
14. Nxd4 {[%clk 0:02:44.8]} 14... Nc4 {[%clk 0:01:36]} 15. Bc3 {[%clk
0:02:43.8]} 15... Nce5 {[%clk 0:01:18.8]} 16. f4 {[%clk 0:02:40.5]} 16... Ng4
{[%clk 0:01:19.1]} 17. Ke2 {[%clk 0:02:33.9]} 17... Ngf6 {[%clk 0:01:09]} 18.
Rhd1 {[%clk 0:02:21]} 18... Bc5 {[%clk 0:01:05.1]} 19. Nf5 {[%clk 0:02:19.9]}
19... O-O {[%clk 0:00:59.7]} 20. e5 {[%clk 0:02:19.3]} 20... Nd5 {[%clk
0:00:54.7]} 21. Bxd5 {[%clk 0:02:19]} 21... cxd5 {[%clk 0:00:55.2]} 22. Rxd5
{[%clk 0:02:20.7]} 22... Rfd8 {[%clk 0:00:38.5]} 23. Rbd1 {[%clk 0:02:20.3]} 1-0